Cogmind - Beta 15 @@@ ROGUE MODE // 2025.07.27 @ 16:35:04 Player: Fazzonamite Result: Destroyed by 78-BF3(R) with Subdweller Machine Gun Performance ------------- Evolutions (0) 0 Regions Visited (2) 400 Robots Destroyed (24) 120 Value Destroyed (692) 692 Prototype IDs (4) 80 Alien Tech Used (0) 0 Bonus (0) 0 TOTAL SCORE: 1292 Bonus ------- None Cogmind --------- Core Integrity 0/250 Matter 281/300 Energy 82/125 System Corruption 0% Temperature Cool (0) Movement Rolling (125) Ox3 Location -10/Subcaves Parts ------- > --- POWER (1) -------- Light Ion Engine > --- PROPULSION (2) --- Spiked Treads Wheel > --- UTILITY (2) ------ Large Storage Unit Makeshift Thermal Plating > --- WEAPON (2) ------- Heavy Riot Gun Particle Gun > --- INVENTORY (15) --- Subdweller Power Source Subdweller Monowheel Improved Heat Sink Structural Scanner Sensor Array Signal Interpreter Seismic Detector Hacking Suite Hacking Suite Medium Laser Subdweller Beam Cannon Dirty Datajack (20) Datajack Mining Laser Peak State ------------ > --- POWER ------------ Light Ion Engine > --- PROPULSION ------- Spiked Treads Wheel > --- UTILITY ---------- Large Storage Unit Makeshift Thermal Plating > --- WEAPON ----------- Heavy Riot Gun Particle Gun > --- INVENTORY -------- Light Ion Engine Subdweller Power Source Subdweller Monowheel Improved Heat Sink Structural Scanner Sensor Array Signal Interpreter Seismic Detector Hacking Suite Hacking Suite Medium Laser Subdweller Beam Cannon Dirty Datajack Datajack Mining Laser [Rating: 17] Favorites ----------- Power Ion Engine Engine Ion Engine Power Core Light Nuclear Core Propulsion Light Treads Treads Light Treads Wheel Wheel Utility Large Storage Unit Device Structural Scanner Storage Large Storage Unit Protection Light Armor Plating Weapon Particle Gun Energy Gun Particle Gun Ballistic Gun Light Assault Rifle Special Weapon Mining Laser Build | -11 -10 -10 ------- Run | Yrd Mat Sub Slots Evolved . | . . . Power . | . . . Propulsion . | . . . Utility . | . . . Weapon . | . . . Parts Attached 27 | 6 11 10 Power 6 | 1 1 4 Engine 5 | 1 1 3 Core 1 | . . 1 Reactor . | . . . Propulsion 7 | 2 1 4 Treads 3 | 1 . 2 Leg . | . . . Wheel 4 | 1 1 2 Hover . | . . . Flight . | . . . Utility 6 | 1 4 1 Device 2 | 1 1 . Storage 2 | . 2 . Processor . | . . . Hackware . | . . . Protection 2 | . 1 1 Artifact . | . . . Weapon 8 | 2 5 1 Energy Gun 5 | 1 3 1 Energy Cannon . | . . . Ballistic Gun 2 | 1 1 . Ballistic Cannon . | . . . Launcher . | . . . Special Weapon 1 | . 1 . Impact Weapon . | . . . Slashing Weapon . | . . . Piercing Weapon . | . . . Special Melee Weapon . | . . . Unidentified Prototypes . | . . . Parts Lost 7 | . . 7 Power 2 | . . 2 Propulsion 2 | . . 2 Utility 1 | . . 1 Weapon 2 | . . 2 Highest Loss Streak 3 | . . 3 To Critical Strikes . | . . . Average Backups 13 | 4 11 14 Power 1 | . 1 1 Propulsion 1 | 1 2 . Utility 5 | . 3 7 Weapon 3 | 1 3 3 Tool/Special . | . . . Unused Backups 13 | . 3 10 Power 1 | . 1 . Propulsion 1 | . . 1 Utility 6 | . 1 5 Weapon 3 | . 1 2 Tool/Special 2 | . . 2 Average Slot Usage (%) 99 | . 99 99 Engine 12 | . 14 11 Core 1 | . . 1 Treads 14 | . 14 15 Wheel 13 | . 14 12 Device 10 | . 6 13 Storage 13 | . 13 14 Protection 3 | . 7 . Energy Gun 17 | . 13 20 Ballistic Gun 9 | . 14 5 Special Weapon 1 | . . 1 Peak Build Rating 17 | 6 10 17 Average Rating 10 | 4 7 13 On Entrance 5 | . 6 10 Naked Turns . | . . . Heaviest Build 34 | 7 33 34 Greatest Support 40 | 16 20 40 Greatest Overweight (x) 3 | . 3 3 Average Overweight (x) 2 | . 1 2 Largest Inventory Capacity 15 | 5 15 15 Average Capacity 14 | 5 13 15 Most Carried 15 | 5 15 15 Average Carried 13 | 4 11 14 Final Capacity 15 | 5 15 15 Final Carried 15 | 5 15 14 Class Distribution -------------------- 100% | Mutant Dominant Class ---------------- Mutant | -10/Materials Mutant | -10/Subcaves Resources | -11 -10 -10 ----------- Run | Yrd Mat Sub Matter Collected 710 | 238 209 263 Remotely . | . . . Salvage Created 917 | 92 545 280 Parts 56 | 4 38 14 Haulers Intercepted 1 | . 1 . Recyclers Shooed 1 | 1 . . Parts Field Recycled . | . . . Retrieved Matter . | . . . Parts Self-Destructed 8 | . . 8 Prevented . | . . . Kills | -11 -10 -10 ------- Run | Yrd Mat Sub Combat Hostiles Destroyed 18 | . 11 7 Guns 18 | . 11 7 Classes Destroyed 9 | 2 6 1 Builder 1 | . 1 . Tunneler 1 | 1 . . Hauler 1 | . 1 . Recycler 1 | 1 . . Mechanic 1 | . 1 . Watcher 1 | . 1 . Swarmer 2 | . 2 . Grunt 11 | . 9 2 Subdweller 5 | . . 5 Best Kill Streak 3 | 2 3 2 Combat Bots Only 2 | . 2 2 Max Kills in Single Turn 1 | 1 1 1 Gunslinging . | . . . Exploded . | . . . Melee . | . . . Uniques/NPCs Destroyed . | . . . Combat | -11 -10 -10 -------- Run | Yrd Mat Sub Hostile Shots Fired 99 | . 46 53 Missed 23 | . 16 7 Hits 76 | . 30 46 Projectile 76 | . 30 46 Critical Strikes 1 | . . 1 Damage Taken 1436 | . 417 1019 Core 262 | . 108 154 Absorbed by Shields . | . . . Ignored by Resistances 29 | . . 29 Core Remaining (%) 100 | 100 . . Volleys Fired 129 | 4 63 62 Largest 2 | 2 2 2 Hottest 125 | 70 100 125 Shots Fired 223 | 8 120 95 Gun 190 | 8 114 68 Cannon . | . . . Launcher . | . . . Special 33 | . 6 27 Kinetic 86 | 4 57 25 Thermal 127 | 4 63 60 Explosive . | . . . Electromagnetic 10 | . . 10 Robot Hit Streak 19 | 3 10 19 Robot Miss Streak 2 | 1 2 1 Penetration Max . | . . . Secondary Targets 2 | . 2 . Max Gunslinging Chain 1 | . 1 . Shots Hit Robots 137 | 5 75 57 Core Hits 52 | 4 31 17 Critical Kills . | . . . Critical Parts Destroyed . | . . . Critical Strikes 6 | . 5 1 Burn 6 | . 5 1 Melee Attacks . | . . . Impact . | . . . Slashing . | . . . Piercing . | . . . Sneak Attacks . | . . . Combat Hostiles . | . . . Follow-up Attacks . | . . . Damage Inflicted 1718 | 53 826 839 Guns 1718 | 53 826 839 Cannons . | . . . Explosions . | . . . Melee . | . . . Ramming . | . . . Kinetic 595 | 15 324 256 Thermal 963 | 38 502 423 Explosive . | . . . Electromagnetic 160 | . . 160 Impact . | . . . Slashing . | . . . Piercing . | . . . Highest Corruption . | . . . Average Corruption . | . . . Corruption Purged . | . . . Corruption Blocked . | . . . Overload Shots . | . . . Overflow Damage . | . . . Projectiles . | . . . Explosions . | . . . Melee . | . . . Knockbacks . | . . . Impact . | . . . Kinetic . | . . . Secondary . | . . . Self-Inflicted Damage . | . . . Shots . | . . . Rammed . | . . . Targets Rammed . | . . . Kicked . | . . . Crushed . | . . . Highest Temperature 249 | 80 211 249 Average Temperature 71 | 37 68 108 Received Heat Transfer 691 | . 192 499 Siege Activations . | . . . Martial Activations . | . . . Shielding Activations . | . . . Robots Disrupted . | . . . Combat Hostiles . | . . . Robots Corrupted . | . . . Combat Hostiles . | . . . Parts Fried . | . . . Impact Corruptions . | . . . Robots Melted . | . . . Combat Hostiles . | . . . Parts Melted 5 | 1 1 3 Heat Transferred 3071 | 111 1850 1110 Parts Sabotaged . | . . . Parts Stolen . | . . . Parts Stripped . | . . . Power Chain Reactions . | . . . Alert | -11 -10 -10 ------- Run | Yrd Mat Sub Maximum Alert Level . | . . . Low Security (%) 100 | 100 100 . Level 1 . | . . . Level 2 . | . . . Level 3 . | . . . Level 4 . | . . . Level 5 . | . . . High Security . | . . . Max Security . | . . . Peak Influence 101 | 10 101 . Initial . | . . . Average 24 | 1 25 . Influence Increases 408 | 10 348 50 Destroy 0b10 Robot/C 260 | . 220 40 Destroy 0b10 Robot/NC 30 | 10 20 . Destroy Leader 54 | . 44 10 Successful Hack 19 | . 19 . Disable Machine 15 | . 15 . Lose Combat Pursuer 30 | . 30 . Influence Decreases 408 | 10 271 127 Entered New Map 37 | . . 37 Time Decay 341 | 10 271 60 Lost Part 20 | . . 20 Lost Ally 10 | . . 10 Squads Dispatched 1 | . 1 . Investigation 1 | . 1 . Extermination . | . . . Reinforcement . | . . . Assault . | . . . Garrison . | . . . Intercept . | . . . Searches Triggered . | . . . Construction Impeded . | . . . Haulers Reinforced . | . . . Active Scanning Responses . | . . . Cargo Convoy Interrupts . | . . . Stealth | -11 -10 -10 --------- Run | Yrd Mat Sub Distress Signals 4 | . 4 . Communications Jammed . | . . . Distress Signals . | . . . Times Spotted 36 | . 26 10 Peak Tracking Total 4 | . 4 3 Tactical Retreats 2 | . 2 . Traps | -11 -10 -10 ------- Run | Yrd Mat Sub Traps Triggered 4 | . 2 2 Indirectly . | . . . Trap Hack Attempts . | . . . Triggered . | . . . Disarmed . | . . . Reprogrammed . | . . . Reused . | . . . Traps Extracted . | . . . Installed . | . . . Triggered . | . . . Machines | -11 -10 -10 ---------- Run | Yrd Mat Sub Machines Disabled 1 | . 1 . Max in Single Turn 1 | . 1 . Machines Repaired . | . . . Machines Dismantled . | . . . Machines Sabotaged . | . . . Overloaded Fab Kills . | . . . Hacking | -11 -10 -10 --------- Run | Yrd Mat Sub Machines Accessed 11 | . 10 1 Terminals 8 | . 8 . Fabricators . | . . . Repair Stations . | . . . Recycling Units 2 | . 2 . Scanalyzers . | . . . Garrison Access . | . . . Total Hacks 31 | . 28 3 Successful 18 | . 15 3 Failed 13 | . 13 . Catastrophic . | . . . Database Lockouts . | . . . Manual 16 | . 16 . Terminals 19 | . 19 . Fabricators . | . . . Repair Stations . | . . . Recycling Units 9 | . 9 . Scanalyzers . | . . . Garrison Access . | . . . Terminal Hacks 8 | . 5 3 Record 3 | . . 3 Robot Analysis 2 | . 2 . Prototype ID Bank 2 | . 2 . Zone Layout 1 | . 1 . Fabricator Hacks . | . . . Repair Station Hacks . | . . . Recycling Unit Hacks 2 | . 2 . Report Inventory 2 | . 2 . Scanalyzer . | . . . Garrison Access Hacks . | . . . Unauthorized Hacks 8 | . 8 . Terminals 6 | . 6 . Assimilate 2 | . 2 . Botnet 3 | . 3 . Operators 1 | . 1 . Fabricators . | . . . Repair Stations . | . . . Recycling Units 2 | . 2 . Recyclers 1 | . 1 . Mask 1 | . 1 . Scanalyzers . | . . . Garrison Access . | . . . Data Cores Recovered . | . . . Used . | . . . Hacking Detections 8 | . 8 . Full Trace Events 1 | . 1 . Feedback Events . | . . . Feedback Blocked . | . . . Robot Schematics Acquired . | . . . Robots Built . | . . . Authchips . | . . . Time . | . . . Total Robot Build Rating . | . . . Part Schematics Acquired . | . . . Parts Built . | . . . Authchips . | . . . Time . | . . . Total Part Build Rating . | . . . Parts Repaired . | . . . Time . | . . . Parts Recycled . | . . . Recycled Matter . | . . . Retrieved Matter . | . . . Retrieved Components . | . . . Parts Scanalyzed . | . . . Part Schematics Acquired . | . . . Parts Damaged . | . . . Bothacking | -11 -10 -10 ------------ Run | Yrd Mat Sub Used RIF Installer . | . . . Robots Hacked . | . . . Non-combat . | . . . Combat . | . . . Robot Hacks Applied . | . . . Relay Couplers Released . | . . . Fabnet Peak Effective % . | . . . Robots Rewired . | . . . Allies Hacked . | . . . Hacks Repelled . | . . . Allies | -11 -10 -10 -------- Run | Yrd Mat Sub Total Allies 2 | . 2 . Largest Group 1 | . 1 1 Highest-Rated Group 10 | . 10 10 Highest-Rated Ally 10 | . 10 10 Total Orders . | . . . Ally Attacks . | . . . Total Damage . | . . . Kills . | . . . Allies Corrupted . | . . . Allies Melted . | . . . Intel | -11 -10 -10 ------- Run | Yrd Mat Sub Active Infowar (turns) 2298 | 23 626 1649 Structural 1805 | . 156 1649 Seismic 493 | 23 470 . Robot Analysis Total 2 | . 2 . Derelict Logs Recovered . | . . . Drone Launches . | . . . Drone Recoveries . | . . . Exploration | -11 -10 -10 ------------- Run | Yrd Mat Sub Turns Passed 3237 | 77 1408 1752 Spaces Moved 1804 | 46 758 1000 Core 7 | 7 . . Treads 45 | . 3 42 Legs . | . . . Wheels 1752 | 39 755 958 Hover . | . . . Flight . | . . . Fastest Speed 50 | 50 100 110 Average Speed 120 | 92 115 124 Slowest Speed 160 | 100 160 160 Overloaded Moves . | . . . Propulsion Burnouts . | . . . Robots Hopped . | . . . Potential Cave-ins . | . . . Cave-ins Triggered . | . . . Exploration Rate (%) 47 | 3 96 44 Regions Visited 2 Branch Regions 1 Pre-discovered Areas . | . . . Known Exits Taken . | . . . Unknown Exits Taken 2 | 1 1 . Scrap Searched . | . . . Spaces Dug 8 | . . 8 Terrain Destroyed 8 | . . 8 Melee . | . . . Projectile 8 | . . 8 AOE . | . . . Terrain Rammed . | . . . Walls Destroyed . | . . . Machines Disabled . | . . . Actions | -11 -10 -10 --------- Run | Yrd Mat Sub Total 2591 | 72 1166 1353 Wait 568 | 7 310 251 Move 1802 | 45 757 1000 Hop . | . . . Pick Up 38 | 10 16 12 Fast Attach 1 | 1 . . Attach 15 | 5 1 9 Detach . | . . . Swap 25 | . 12 13 Drop 13 | . 7 6 Fire 129 | 4 63 62 Melee . | . . . Ram . | . . . Kick . | . . . Crush . | . . . Escape Stasis . | . . . Rewire . | . . . Trap . | . . . Miscellaneous . | . . . Route ------- -11/Scrapyard -10/Materials (discovered 5 exits: [*Mat x3] / [*Min] / *Sub) -10/Subcaves History --------- Turn | Location | Event 17 | -11/Scrapyard | Discovered new exit (range 15) 78 | -11/Scrapyard | Entered Materials 312 | -10/Materials | Build established: Mutant 463 | -10/Materials | Discovered new exit (range 14) 966 | -10/Materials | Discovered new exit (range 10) 1060 | -10/Materials | Discovered new exit (range 13) 1184 | -10/Materials | Discovered new exit (range 13) 1479 | -10/Materials | Discovered new exit (range 3) 1486 | -10/Materials | Entered Subcaves 1486 | -10/Subcaves | Accompanied by 1 ally 1487 | -10/Subcaves | Approached by a straggling Scientist 1575 | -10/Subcaves | A swath of the cavern ceiling suddenly collapsed 1607 | -10/Subcaves | Shifting Twisted Machinery released Battle Rifle 1705 | -10/Subcaves | Core integrity fell below 50% 2221 | -10/Subcaves | A swath of the cavern ceiling suddenly collapsed 2231 | -10/Subcaves | Lost 3 parts (1n2w) 2633 | -10/Subcaves | Visited Clippyterm 2636 | -10/Subcaves | Learned Factory garrison access intel 2927 | -10/Subcaves | Core integrity fell below 20% 3102 | -10/Subcaves | Shifting Twisted Machinery released Mak. Thermal Plating 3238 | -10/Subcaves | Destroyed by 78-BF3(R) with Subdweller Machine Gun Last Messages --------------- heartily recommend installing Trojan(Botnet) on at least one or two Terminals to improve your odds of success elsewhere. >>Record! "LU-1G1" It looks like you're researching the legendary digger of dangerously deep tunnels, unfortunately it seems not even members of the Boring Crew know what became of that one. 02926_ Triggered Shrapnel Trap. 02926_ An expanding cloud of shrapnel blasts out in all directions. 02971_ Acquired 18 matter. 02973_ Acquired 38 matter. Mak. Thermal Plating falls loose from the Twisted Machinery. 03112_ Dropped Sml. Storage Unit. 03112_ Acquired Mak. Thermal Plating. 03194_ 78-BF3(R): "ECOKILL!" 03234_ Lgt. Ion Engine destroyed. 03236_ GY-OB2(R) IFF system glitched. Map ----- +----------------------------------------------------+ | ??????????????#### #### ##??####### | | ??????????????### #### ##?#### | | ?????? # ????### ###### ##?### | | ??????## ????### ###### ##?## | | ??????# ???## ####### ###?## | | ??????## ### ##### ####### | | ??????## #### ### ### ########## | | ?????????? ###### """### | | ???????? ###### ## """ | | ????????# # ###### """ | | ????????##### ###### ## ! | | ????????##### #### ###### | | ??????????## ### ###### ### | | ??????????## ####### ###### | | ?????????### ## ###### ####### | | ?????????## # ## #### ###### | | ?????????## ## ### # ## | | ?????????## ### | | ????????### # ### ##### # | | ????????## ##### ##### ### # | | ????????## ######## #########""##### | | ????????## ?############ R #######"## ##### | | ????????## ?# ##### R## ## ###### ###?? | | ????????### ??# #?### ### ""####"####? | | ????????# ???# ##### ### ## ##""##"####? | | ????????? ????# ###@ ## %### "" ##""##"### | | ????????? ??????# ## ## #####""##" ## | | ???????? ???????# ## # #####"## ## | | ???????????????## ## ####### ####### ### | | ???????????????# #### ###### ########### | | ??????????????# ##??## ##### ##?????###? | | ??????????????# ##???####?## ## ####????????? | | ??????????????#####????####?#############????????? | | ????????????????????????????###########??????????? | | ?????????????????????????????????????????????????? | | ?????????????????????????????????????????????????? | | ?????????????????????????????????????????????????? | | ?????????????????????????????????????????????????? | | ?????????????????????????????????????????????????? | | ?????????????????????????????????????????????????? | | ?????????????????????????????????????????????????? | | ?????????????????????????????????????????????????? | | ?????????????????????????????????????????????????? | | ?????????????????????????????????????????????????? | | ?????????????????????????????????????????????????? | | ?????????????????????????????????????????????????? | | ?????????????????????????????????????????????????? | | | | | | | +----------------------------------------------------+ Best States ------------- Heat Dissipation 25 Energy Generation 15 Energy Capacity 250 Matter Stores 300 Matter Capacity 300 Sight Range 16 Terrain Scan Density 10 Armor Coverage 150 Resistance: TH 10 Evasion (%) 50 Recoil Reduction 2 Item Schematics ----------------- None Robot Schematics ------------------ None Fabricated ------------ Nothing Repaired ---------- Nothing Alien Tech Used ----------------- None Achievements -------------- None Challenges ------------ None Game ------ Seed GuidanceImprinterSystem Manual? 0 Play Time 00:48:25 Cumulative 229.3 hours Start 2025.07.27 @ 15:42:27 End 2025.07.27 @ 16:35:04 Sessions 1 Manual Loads 0 Difficulty Rogue Special Mode None Game No. 146 Rogue 146 Adventurer 0 Explorer 0 Win Type - Total 5 Types 3/0/1/1/0/0/0/0/0/0 Lore% 63 Gallery% 59 Achievement% 52 Wizard Run 0 Options --------- Layout 2 ASCII 0 Keyboard 0 Movement Mouse Keybinds 0 Fullscreen 1 Font 48/Smallcaps Map View 55x44 Zoom Use 0% Tactical HUD 1 Map Filters NONE Filters NONE Steam 1 RUN: e26193d9-aacd-421e-9ebc-4b3ec9e9a67a